[Event "Titled Tuesday Blitz June 27 Early 2023"]
[White "NLLO777"]
[Black "Quirke, Jeffrey"]
[BlackFideId "2013029"]
[WhiteElo "2486"]
[BlackElo "2210"]
[Result "0-1"]
[Round "2"]
[TimeControl "180+2"]
[Date "2023.06.27"]
[WhiteClock "0:00:20"]
[BlackClock "0:00:10"]
[Board "209"]

1. e4 {[%clk 0:03:00]}  Nf6 {[%clk 0:02:59]} 2. Nc3 {[%clk 0:03:00]}  d5 {[%clk 0:02:58]} 3. e5 {[%clk 0:03:00]}  Nfd7 {[%clk 0:02:55]} 4. d4 {[%clk 0:03:00]}  c5 {[%clk 0:02:51]} 5. Nce2 {[%clk 0:02:56]}  cxd4 {[%clk 0:02:36]} 6. f4 {[%clk 0:02:53]}  Nb6 {[%clk 0:02:22]} 7. Nf3 {[%clk 0:02:51]}  Nc6 {[%clk 0:02:21]} 8. Nexd4 {[%clk 0:02:51]}  Nxd4 {[%clk 0:02:19]} 9. Nxd4 {[%clk 0:02:51]}  e6 {[%clk 0:02:07]} 10. c3 {[%clk 0:02:51]}  Be7 {[%clk 0:02:06]} 11. Bd3 {[%clk 0:02:49]}  O-O {[%clk 0:02:07]} 12. O-O {[%clk 0:02:48]}  f5 {[%clk 0:01:56]} 13. exf6 {[%clk 0:02:24]}  Bxf6 {[%clk 0:01:56]} 14. Be3 {[%clk 0:02:22]}  Bd7 {[%clk 0:01:50]} 15. Qe2 {[%clk 0:02:17]}  Qe7 {[%clk 0:01:36]} 16. Rae1 {[%clk 0:02:17]}  Rae8 {[%clk 0:01:33]} 17. Bf2 {[%clk 0:02:12]}  e5 {[%clk 0:01:13]} 18. fxe5 {[%clk 0:02:09]}  Qxe5 {[%clk 0:00:58]} 19. Bxh7+ {[%clk 0:02:04]}  Kh8 {[%clk 0:00:41]} 20. Qxe5 {[%clk 0:02:00]}  Rxe5 {[%clk 0:00:41]} 21. Bd3 {[%clk 0:01:56]}  Rfe8 {[%clk 0:00:37]} 22. Rxe5 {[%clk 0:01:54]}  Rxe5 {[%clk 0:00:37]} 23. h3 {[%clk 0:01:47]}  Nc4 {[%clk 0:00:34]} 24. Bxc4 {[%clk 0:01:44]}  dxc4 {[%clk 0:00:34]} 25. g4 {[%clk 0:01:34]}  a6 {[%clk 0:00:34]} 26. Bg3 {[%clk 0:01:33]}  Re3 {[%clk 0:00:30]} 27. Kf2 {[%clk 0:01:33]}  Rd3 {[%clk 0:00:29]} 28. Re1 {[%clk 0:01:05]}  Bxd4+ {[%clk 0:00:25]} 29. cxd4 {[%clk 0:01:06]}  Rxd4 {[%clk 0:00:25]} 30. Re2 {[%clk 0:01:07]}  b5 {[%clk 0:00:23]} 31. Be5 {[%clk 0:01:02]}  Rd3 {[%clk 0:00:21]} 32. a3 {[%clk 0:01:03]}  Bc6 {[%clk 0:00:20]} 33. h4 {[%clk 0:00:58]}  Rf3+ {[%clk 0:00:20]} 34. Ke1 {[%clk 0:00:58]}  Rh3 {[%clk 0:00:19]} 35. h5 {[%clk 0:00:53]}  Bf3 {[%clk 0:00:19]} 36. Rd2 {[%clk 0:00:49]}  Bxg4 {[%clk 0:00:19]} 37. Rg2 {[%clk 0:00:43]}  Bxh5 {[%clk 0:00:19]} 38. Rxg7 {[%clk 0:00:44]}  Re3+ {[%clk 0:00:17]} 39. Kd2 {[%clk 0:00:40]}  Rxe5 {[%clk 0:00:18]} 40. Ra7 {[%clk 0:00:40]}  Re6 {[%clk 0:00:17]} 41. Kc3 {[%clk 0:00:40]}  Bg6 {[%clk 0:00:17]} 42. Kd4 {[%clk 0:00:40]}  Rf6 {[%clk 0:00:16]} 43. Ke5 {[%clk 0:00:40]}  Rb6 {[%clk 0:00:16]} 44. Kd4 {[%clk 0:00:39]}  Bd3 {[%clk 0:00:14]} 45. Kc5 {[%clk 0:00:40]}  Rf6 {[%clk 0:00:13]} 46. a4 {[%clk 0:00:39]}  bxa4 {[%clk 0:00:11]} 47. Kb4 {[%clk 0:00:32]}  Rb6+ {[%clk 0:00:11]} 48. Ka3 {[%clk 0:00:33]}  Rb3+ {[%clk 0:00:10]} 49. Ka2 {[%clk 0:00:33]}  a3 {[%clk 0:00:09]} 50. bxa3 {[%clk 0:00:33]}  Rb6 {[%clk 0:00:09]} 51. Rc7 {[%clk 0:00:32]}  a5 {[%clk 0:00:08]} 52. a4 {[%clk 0:00:28]}  Rb4 {[%clk 0:00:07]} 53. Ka3 {[%clk 0:00:27]}  Bc2 {[%clk 0:00:06]} 54. Rc5 {[%clk 0:00:26]}  Rxa4+ {[%clk 0:00:05]} 55. Kb2 {[%clk 0:00:27]}  Bb3 {[%clk 0:00:05]} 56. Kc3 {[%clk 0:00:27]}  Ra2 {[%clk 0:00:05]} 57. Rc7 {[%clk 0:00:24]}  a4 {[%clk 0:00:06]} 58. Kd4 {[%clk 0:00:25]}  a3 {[%clk 0:00:06]} 59. Ke5 {[%clk 0:00:25]}  Re2+ {[%clk 0:00:06]} 60. Kf6 {[%clk 0:00:26]}  Rf2+ {[%clk 0:00:06]} 61. Kg6 {[%clk 0:00:26]}  Rg2+ {[%clk 0:00:07]} 62. Kf6 {[%clk 0:00:26]}  a2 {[%clk 0:00:06]} 63. Ra7 {[%clk 0:00:23]}  Rg1 {[%clk 0:00:06]} 64. Ra8+ {[%clk 0:00:21]}  Kh7 {[%clk 0:00:05]} 65. Ra7+ {[%clk 0:00:21]}  Kh6 {[%clk 0:00:06]} 66. Ra8 {[%clk 0:00:22]}  Kh5 {[%clk 0:00:06]} 67. Kf5 {[%clk 0:00:21]}  Rf1+ {[%clk 0:00:05]} 68. Ke4 {[%clk 0:00:20]}  a1=Q {[%clk 0:00:06]} 69. Rh8+ {[%clk 0:00:18]}  Kg4 {[%clk 0:00:06]} 70. Rg8+ {[%clk 0:00:18]}  Kh3 {[%clk 0:00:07]} 71. Rh8+ {[%clk 0:00:18]}  Kg2 {[%clk 0:00:07]} 72. Rg8+ {[%clk 0:00:19]}  Kf2 {[%clk 0:00:08]} 73. Rf8+ {[%clk 0:00:17]}  Ke1 {[%clk 0:00:08]} 74. Kd5 {[%clk 0:00:18]}  Qd1+ {[%clk 0:00:07]} 75. Kc5 {[%clk 0:00:19]}  Qe2 {[%clk 0:00:07]} 76. Kb4 {[%clk 0:00:20]}  Qd2+ {[%clk 0:00:07]} 77. Ka3 {[%clk 0:00:20]}  c3 {[%clk 0:00:07]} 78. Re8+ {[%clk 0:00:21]}  Qe2 {[%clk 0:00:07]} 79. Kxb3 {[%clk 0:00:18]}  c2 {[%clk 0:00:07]} 80. Rc8 {[%clk 0:00:17]}  Qd3+ {[%clk 0:00:06]} 81. Kb2 {[%clk 0:00:18]}  Qd1 {[%clk 0:00:06]} 82. Rxc2 {[%clk 0:00:17]}  Qxc2+ {[%clk 0:00:05]} 83. Kxc2 {[%clk 0:00:18]}  Rf2+ {[%clk 0:00:06]} 84. Kd3 {[%clk 0:00:18]}  Kd1 {[%clk 0:00:06]} 85. Ke3 {[%clk 0:00:19]}  Ra2 {[%clk 0:00:06]} 86. Kd3 {[%clk 0:00:19]}  Ra3+ {[%clk 0:00:05]} 87. Kc4 {[%clk 0:00:19]}  Kd2 {[%clk 0:00:05]} 88. Kb4 {[%clk 0:00:20]}  Rg3 {[%clk 0:00:05]} 89. Kc4 {[%clk 0:00:20]}  Kc2 {[%clk 0:00:05]} 90. Kd4 {[%clk 0:00:21]}  Rh3 {[%clk 0:00:05]} 91. Ke4 {[%clk 0:00:20]}  Ra3 {[%clk 0:00:06]} 92. Kd4 {[%clk 0:00:20]}  Kd2 {[%clk 0:00:06]} 93. Kc4 {[%clk 0:00:20]}  Rh3 {[%clk 0:00:06]} 94. Kb4 {[%clk 0:00:20]}  Rg3 {[%clk 0:00:06]} 95. Kc4 {[%clk 0:00:20]}  Rh3 {[%clk 0:00:05]} 96. Kb4 {[%clk 0:00:20]}  Kc2 {[%clk 0:00:06]} 97. Ka4 {[%clk 0:00:20]}  Kb2 {[%clk 0:00:06]} 98. Kb4 {[%clk 0:00:20]}  Rh4+ {[%clk 0:00:07]} 99. Kc5 {[%clk 0:00:19]}  Kc3 {[%clk 0:00:08]} 100. Kd5 {[%clk 0:00:19]}  Ra4 {[%clk 0:00:08]} 101. Ke5 {[%clk 0:00:19]}  Kd3 {[%clk 0:00:08]} 102. Kf5 {[%clk 0:00:20]}  Ke3 {[%clk 0:00:09]} 103. Kg5 {[%clk 0:00:21]}  Kf3 {[%clk 0:00:09]} 104. Kh5 {[%clk 0:00:21]}  Kg3 {[%clk 0:00:10]} 105. Kg5 {[%clk 0:00:21]}  Ra5+ {[%clk 0:00:11]} 106. Kf6 {[%clk 0:00:21]}  Kf4 {[%clk 0:00:11]} 107. Ke6 {[%clk 0:00:20]}  Rh5 {[%clk 0:00:11]} 108. Kd6 {[%clk 0:00:19]}  Ke4 {[%clk 0:00:12]} 109. Kc6 {[%clk 0:00:19]}  Kd4 {[%clk 0:00:12]} 110. Kb6 {[%clk 0:00:20]}  Kc4 {[%clk 0:00:13]} 111. Kc6 {[%clk 0:00:20]}  Rh6+ {[%clk 0:00:12]} 112. Kb7 {[%clk 0:00:21]}  Kc5 {[%clk 0:00:11]} 113. Ka7 {[%clk 0:00:20]}  Kb5 {[%clk 0:00:10]} 114. Kb7 {[%clk 0:00:20]}  Rh7+ {[%clk 0:00:10]} 115. Kc8 {[%clk 0:00:18]}  Kc6 {[%clk 0:00:10]} 116. Kd8 {[%clk 0:00:19]}  Ra7 {[%clk 0:00:10]} 117. Ke8 {[%clk 0:00:19]}  Kd6 {[%clk 0:00:10]} 118. Kd8 {[%clk 0:00:20]}  Ra8# {[%clk 0:00:10]} 0-1


[Site "https://www.chess.com"]

[Event "Titled Tuesday Blitz June 27 Early 2023"]
[White "Sariego Figueredo, Wilfredo"]
[Black "Koutlas, Nikolaos"]
[WhiteFideId "3500080"]
[BlackFideId "25827138"]
[WhiteElo "2194"]
[BlackElo "2481"]
[Result "0-1"]
[Round "2"]
[TimeControl "180+2"]
[Date "2023.06.27"]
[WhiteClock "0:00:05"]
[BlackClock "0:00:17"]
[Board "213"]

1. d4 {[%clk 0:03:00]}  b6 {[%clk 0:02:58]} 2. Bf4 {[%clk 0:03:00]}  Bb7 {[%clk 0:02:58]} 3. Nf3 {[%clk 0:03:00]}  h6 {[%clk 0:02:58]} 4. c4 {[%clk 0:02:59]}  g5 {[%clk 0:02:58]} 5. Be5 {[%clk 0:02:59]}  f6 {[%clk 0:02:55]} 6. Bg3 {[%clk 0:02:58]}  Bg7 {[%clk 0:02:55]} 7. e3 {[%clk 0:02:57]}  f5 {[%clk 0:02:55]} 8. Ne5 {[%clk 0:02:54]}  Nf6 {[%clk 0:02:51]} 9. Ng6 {[%clk 0:02:50]}  Rg8 {[%clk 0:02:49]} 10. h4 {[%clk 0:02:47]}  e6 {[%clk 0:02:43]} 11. Nc3 {[%clk 0:02:44]}  d6 {[%clk 0:02:40]} 12. h5 {[%clk 0:02:33]}  Nbd7 {[%clk 0:02:34]} 13. d5 {[%clk 0:02:28]}  e5 {[%clk 0:02:32]} 14. Bd3 {[%clk 0:02:22]}  e4 {[%clk 0:02:31]} 15. Be2 {[%clk 0:02:17]}  Nc5 {[%clk 0:02:18]} 16. b4 {[%clk 0:02:12]}  Nfd7 {[%clk 0:02:04]} 17. bxc5 {[%clk 0:02:10]}  Bxc3+ {[%clk 0:02:03]} 18. Kf1 {[%clk 0:02:09]}  Nxc5 {[%clk 0:02:00]} 19. Rc1 {[%clk 0:02:07]}  Bg7 {[%clk 0:01:58]} 20. Kg1 {[%clk 0:01:50]}  Qf6 {[%clk 0:01:53]} 21. Qc2 {[%clk 0:01:46]}  O-O-O {[%clk 0:01:37]} 22. a4 {[%clk 0:01:41]}  a5 {[%clk 0:01:36]} 23. Rb1 {[%clk 0:01:39]}  Qf7 {[%clk 0:01:32]} 24. Kh2 {[%clk 0:01:32]}  Rde8 {[%clk 0:01:17]} 25. Rb5 {[%clk 0:01:23]}  Ba6 {[%clk 0:01:15]} 26. Rxc5 {[%clk 0:01:13]}  bxc5 {[%clk 0:01:11]} 27. Rb1 {[%clk 0:01:12]}  Kd7 {[%clk 0:01:09]} 28. Qd2 {[%clk 0:00:59]}  Ra8 {[%clk 0:01:07]} 29. Rc1 {[%clk 0:00:52]}  Qf6 {[%clk 0:01:02]} 30. f3 {[%clk 0:00:49]}  exf3 {[%clk 0:00:56]} 31. gxf3 {[%clk 0:00:44]}  Rgb8 {[%clk 0:00:56]} 32. e4 {[%clk 0:00:44]}  Rb2 {[%clk 0:00:55]} 33. Rc2 {[%clk 0:00:44]}  f4 {[%clk 0:00:47]} 34. Be1 {[%clk 0:00:29]}  Rab8 {[%clk 0:00:44]} 35. e5 {[%clk 0:00:23]}  Rxc2 {[%clk 0:00:39]} 36. exf6 {[%clk 0:00:20]}  Rxd2 {[%clk 0:00:38]} 37. Bxd2 {[%clk 0:00:20]}  Bxf6 {[%clk 0:00:38]} 38. Kh3 {[%clk 0:00:18]}  Rb2 {[%clk 0:00:36]} 39. Bxa5 {[%clk 0:00:19]}  Rxe2 {[%clk 0:00:35]} 40. Kg4 {[%clk 0:00:17]}  Bxc4 {[%clk 0:00:35]} 41. Kf5 {[%clk 0:00:16]}  Ba1 {[%clk 0:00:32]} 42. Nf8+ {[%clk 0:00:13]}  Ke8 {[%clk 0:00:27]} 43. Ne6 {[%clk 0:00:13]}  Bd3+ {[%clk 0:00:28]} 44. Kg4 {[%clk 0:00:13]}  Rg2+ {[%clk 0:00:28]} 45. Kh3 {[%clk 0:00:13]}  Bf1 {[%clk 0:00:27]} 46. Nxc7+ {[%clk 0:00:13]}  Kd7 {[%clk 0:00:26]} 47. Ne6 {[%clk 0:00:13]}  Be5 {[%clk 0:00:21]} 48. Be1 {[%clk 0:00:10]}  g4+ {[%clk 0:00:21]} 49. fxg4 {[%clk 0:00:10]}  f3 {[%clk 0:00:21]} 50. g5 {[%clk 0:00:07]}  Rxg5+ {[%clk 0:00:20]} 51. Kh4 {[%clk 0:00:07]}  Rg1 {[%clk 0:00:18]} 52. Bg3 {[%clk 0:00:05]}  Bxg3+ {[%clk 0:00:17]} 53. Kg4 {[%clk 0:00:06]}  f2 {[%clk 0:00:17]} 54. Kf3 {[%clk 0:00:04]}  Be2+ {[%clk 0:00:18]} 55. Kxe2 {[%clk 0:00:04]}  f1=Q+ {[%clk 0:00:19]} 56. Ke3 {[%clk 0:00:04]}  Qf2+ {[%clk 0:00:19]} 57. Kd3 {[%clk 0:00:05]}  Rd1+ {[%clk 0:00:19]} 58. Kc4 {[%clk 0:00:06]}  Qc2+ {[%clk 0:00:19]} 59. Kb5 {[%clk 0:00:07]}  Rb1+ {[%clk 0:00:19]} 60. Ka5 {[%clk 0:00:07]}  Qc3+ {[%clk 0:00:18]} 61. Ka6 {[%clk 0:00:07]}  Qb4 {[%clk 0:00:18]} 62. Nf8+ {[%clk 0:00:06]}  Ke8 {[%clk 0:00:18]} 63. Nd7 {[%clk 0:00:05]}  Qxa4# {[%clk 0:00:17]} 0-1


[Site "https://www.chess.com"]

[Event "Titled Tuesday Blitz June 27 Early 2023"]
[White "ilya2700"]
[Black "Kielinkei"]
[WhiteElo "2178"]
[BlackElo "2479"]
[Result "0-1"]
[Round "2"]
[TimeControl "180+2"]
[Date "2023.06.27"]
[WhiteClock "0:00:25"]
[BlackClock "0:00:04"]
[Board "215"]

1. e4 {[%clk 0:02:59]}  d6 {[%clk 0:03:00]} 2. d4 {[%clk 0:02:59]}  Nf6 {[%clk 0:03:00]} 3. Nc3 {[%clk 0:02:59]}  Nbd7 {[%clk 0:03:01]} 4. Nf3 {[%clk 0:02:59]}  e5 {[%clk 0:03:01]} 5. dxe5 {[%clk 0:02:58]}  dxe5 {[%clk 0:03:01]} 6. Bg5 {[%clk 0:02:56]}  Bb4 {[%clk 0:02:56]} 7. Bc4 {[%clk 0:02:44]}  h6 {[%clk 0:02:46]} 8. Bh4 {[%clk 0:02:42]}  O-O {[%clk 0:02:33]} 9. O-O {[%clk 0:02:39]}  c6 {[%clk 0:02:21]} 10. Qe2 {[%clk 0:02:31]}  Qc7 {[%clk 0:02:18]} 11. Rad1 {[%clk 0:02:28]}  b5 {[%clk 0:02:12]} 12. Bb3 {[%clk 0:02:27]}  a5 {[%clk 0:02:09]} 13. a4 {[%clk 0:02:24]}  Bxc3 {[%clk 0:02:01]} 14. bxc3 {[%clk 0:02:25]}  Ba6 {[%clk 0:01:59]} 15. Qe3 {[%clk 0:02:15]}  bxa4 {[%clk 0:01:56]} 16. Bxa4 {[%clk 0:02:09]}  Bxf1 {[%clk 0:01:56]} 17. Rxf1 {[%clk 0:02:10]}  Ng4 {[%clk 0:01:14]} 18. Qd3 {[%clk 0:02:01]}  Nc5 {[%clk 0:01:12]} 19. Qc4 {[%clk 0:01:55]}  Nxa4 {[%clk 0:01:11]} 20. Qxa4 {[%clk 0:01:56]}  Qd6 {[%clk 0:01:06]} 21. Bg3 {[%clk 0:01:48]}  Rfe8 {[%clk 0:00:58]} 22. h3 {[%clk 0:01:44]}  Nf6 {[%clk 0:00:58]} 23. Nd4 {[%clk 0:01:40]}  Rec8 {[%clk 0:00:46]} 24. Nf5 {[%clk 0:01:37]}  Qe6 {[%clk 0:00:45]} 25. f3 {[%clk 0:01:31]}  g6 {[%clk 0:00:34]} 26. Nxh6+ {[%clk 0:01:16]}  Kg7 {[%clk 0:00:34]} 27. Ng4 {[%clk 0:01:13]}  Nxg4 {[%clk 0:00:32]} 28. hxg4 {[%clk 0:01:14]}  Rd8 {[%clk 0:00:28]} 29. Rb1 {[%clk 0:01:07]}  f6 {[%clk 0:00:22]} 30. Rb7+ {[%clk 0:01:04]}  Rd7 {[%clk 0:00:22]} 31. Rb6 {[%clk 0:01:04]}  Rc7 {[%clk 0:00:20]} 32. c4 {[%clk 0:00:54]}  Qd6 {[%clk 0:00:18]} 33. Rb1 {[%clk 0:00:39]}  c5 {[%clk 0:00:17]} 34. Bf2 {[%clk 0:00:38]}  Qd7 {[%clk 0:00:14]} 35. Rb5 {[%clk 0:00:35]}  Qd1+ {[%clk 0:00:13]} 36. Kh2 {[%clk 0:00:34]}  Rh8+ {[%clk 0:00:14]} 37. Kg3 {[%clk 0:00:34]}  Qh1 {[%clk 0:00:14]} 38. f4 {[%clk 0:00:31]}  Qh2+ {[%clk 0:00:08]} 39. Kf3 {[%clk 0:00:29]}  Qxf4+ {[%clk 0:00:09]} 40. Ke2 {[%clk 0:00:30]}  Qxe4+ {[%clk 0:00:10]} 41. Kd2 {[%clk 0:00:29]}  Rd7+ {[%clk 0:00:08]} 42. Kc3 {[%clk 0:00:29]}  Qe2 {[%clk 0:00:05]} 43. Rxc5 {[%clk 0:00:28]}  Qd2+ {[%clk 0:00:04]} 44. Kb3 {[%clk 0:00:27]}  Rb7+ {[%clk 0:00:04]} 45. Ka3 {[%clk 0:00:27]}  Qxf2 {[%clk 0:00:03]} 46. Qc6 {[%clk 0:00:26]}  Rf7 {[%clk 0:00:03]} 47. Rd5 {[%clk 0:00:25]}  Qxc2 {[%clk 0:00:03]} 48. Rd7 {[%clk 0:00:25]}  Qc3+ {[%clk 0:00:03]} 49. Ka4 {[%clk 0:00:25]}  Qb4# {[%clk 0:00:04]} 0-1


[Site "https://www.chess.com"]

[Event "Titled Tuesday Blitz June 27 Early 2023"]
[White "Ivanova, Karina"]
[Black "Corredor Castellanos, Camilo"]
[WhiteFideId "24139750"]
[BlackFideId "4425871"]
[WhiteElo "2170"]
[BlackElo "2477"]
[Result "0-1"]
[Round "2"]
[TimeControl "180+2"]
[Date "2023.06.27"]
[WhiteClock "0:00:20"]
[BlackClock "0:01:40"]
[Board "218"]

1. e4 {[%clk 0:03:00]}  e5 {[%clk 0:02:58]} 2. Nf3 {[%clk 0:03:00]}  Nc6 {[%clk 0:02:59]} 3. Bb5 {[%clk 0:02:59]}  a6 {[%clk 0:02:59]} 4. Ba4 {[%clk 0:02:57]}  Nf6 {[%clk 0:02:59]} 5. d3 {[%clk 0:02:55]}  b5 {[%clk 0:02:58]} 6. Bb3 {[%clk 0:02:55]}  Bc5 {[%clk 0:02:59]} 7. O-O {[%clk 0:02:48]}  d6 {[%clk 0:02:57]} 8. c3 {[%clk 0:02:47]}  h6 {[%clk 0:02:56]} 9. Re1 {[%clk 0:02:43]}  O-O {[%clk 0:02:56]} 10. d4 {[%clk 0:02:19]}  exd4 {[%clk 0:02:54]} 11. cxd4 {[%clk 0:02:19]}  Bb4 {[%clk 0:02:53]} 12. Bd2 {[%clk 0:02:15]}  Bxd2 {[%clk 0:02:51]} 13. Nbxd2 {[%clk 0:02:15]}  Bg4 {[%clk 0:02:51]} 14. h3 {[%clk 0:02:11]}  Bh5 {[%clk 0:02:51]} 15. e5 {[%clk 0:01:58]}  Nxd4 {[%clk 0:02:22]} 16. exf6 {[%clk 0:01:54]}  Qxf6 {[%clk 0:02:23]} 17. g4 {[%clk 0:01:35]}  Bg6 {[%clk 0:02:23]} 18. Nxd4 {[%clk 0:01:28]}  Qxd4 {[%clk 0:02:24]} 19. Nf3 {[%clk 0:01:19]}  Qf4 {[%clk 0:02:24]} 20. Bd5 {[%clk 0:01:15]}  Rae8 {[%clk 0:02:23]} 21. Qd2 {[%clk 0:01:14]}  Qf6 {[%clk 0:02:16]} 22. Rxe8 {[%clk 0:01:09]}  Rxe8 {[%clk 0:02:17]} 23. Re1 {[%clk 0:01:09]}  Rxe1+ {[%clk 0:02:10]} 24. Nxe1 {[%clk 0:01:08]}  c5 {[%clk 0:02:11]} 25. Bg2 {[%clk 0:01:06]}  h5 {[%clk 0:02:05]} 26. Bb7 {[%clk 0:01:00]}  hxg4 {[%clk 0:02:03]} 27. hxg4 {[%clk 0:01:00]}  a5 {[%clk 0:02:03]} 28. Qxa5 {[%clk 0:00:52]}  Qe7 {[%clk 0:01:57]} 29. Bg2 {[%clk 0:00:46]}  b4 {[%clk 0:01:56]} 30. Nf3 {[%clk 0:00:40]}  Be4 {[%clk 0:01:55]} 31. Qb5 {[%clk 0:00:35]}  g6 {[%clk 0:01:49]} 32. Qe2 {[%clk 0:00:33]}  d5 {[%clk 0:01:48]} 33. Nd2 {[%clk 0:00:31]}  Qg5 {[%clk 0:01:44]} 34. Nxe4 {[%clk 0:00:30]}  dxe4 {[%clk 0:01:44]} 35. Bxe4 {[%clk 0:00:29]}  Kg7 {[%clk 0:01:40]} 36. Bg2 {[%clk 0:00:28]}  Qc1+ {[%clk 0:01:39]} 37. Kh2 {[%clk 0:00:26]}  Qh6+ {[%clk 0:01:39]} 38. Kg3 {[%clk 0:00:26]}  Qc1 {[%clk 0:01:39]} 39. Qe5+ {[%clk 0:00:25]}  Kg8 {[%clk 0:01:40]} 40. Qxc5 {[%clk 0:00:20]}  Qxc5 {[%clk 0:01:40]} 0-1


[Site "https://www.chess.com"]

[Event "Titled Tuesday Blitz June 27 Early 2023"]
[White "Flynn, Jacob"]
[Black "campochess"]
[WhiteFideId "2509393"]
[WhiteElo "2471"]
[BlackElo "2165"]
[Result "1-0"]
[Round "2"]
[TimeControl "180+2"]
[Date "2023.06.27"]
[WhiteClock "0:01:29"]
[BlackClock "0:01:35"]
[Board "219"]

1. e4 {[%clk 0:03:00]}  c5 {[%clk 0:02:59]} 2. Nf3 {[%clk 0:03:01]}  Nc6 {[%clk 0:02:59]} 3. d4 {[%clk 0:02:59]}  cxd4 {[%clk 0:02:59]} 4. Nxd4 {[%clk 0:02:59]}  e5 {[%clk 0:02:59]} 5. Nb5 {[%clk 0:02:58]}  a6 {[%clk 0:02:59]} 6. Nd6+ {[%clk 0:02:57]}  Bxd6 {[%clk 0:02:59]} 7. Qxd6 {[%clk 0:02:57]}  Qe7 {[%clk 0:02:59]} 8. Qxe7+ {[%clk 0:02:56]}  Ngxe7 {[%clk 0:02:59]} 9. Nc3 {[%clk 0:02:55]}  d5 {[%clk 0:02:59]} 10. exd5 {[%clk 0:02:49]}  Nb4 {[%clk 0:02:59]} 11. Bd3 {[%clk 0:02:49]}  Nxd3+ {[%clk 0:02:58]} 12. cxd3 {[%clk 0:02:50]}  Bf5 {[%clk 0:02:58]} 13. O-O {[%clk 0:02:47]}  Bxd3 {[%clk 0:02:55]} 14. Rd1 {[%clk 0:02:47]}  Bg6 {[%clk 0:02:53]} 15. Be3 {[%clk 0:02:47]}  O-O {[%clk 0:02:52]} 16. Rac1 {[%clk 0:02:46]}  Nf5 {[%clk 0:02:51]} 17. Bc5 {[%clk 0:02:43]}  Rfd8 {[%clk 0:02:50]} 18. Na4 {[%clk 0:02:39]}  Rac8 {[%clk 0:02:37]} 19. Bb6 {[%clk 0:02:32]}  Rxc1 {[%clk 0:02:35]} 20. Rxc1 {[%clk 0:02:33]}  Nd4 {[%clk 0:02:23]} 21. Bxd8 {[%clk 0:02:03]}  Ne2+ {[%clk 0:02:22]} 22. Kf1 {[%clk 0:02:04]}  Nxc1 {[%clk 0:02:22]} 23. Nc5 {[%clk 0:01:57]}  Kf8 {[%clk 0:02:07]} 24. Nxb7 {[%clk 0:01:48]}  Nxa2 {[%clk 0:01:57]} 25. Ba5 {[%clk 0:01:37]}  Nc1 {[%clk 0:01:55]} 26. d6 {[%clk 0:01:34]}  Bd3+ {[%clk 0:01:54]} 27. Ke1 {[%clk 0:01:34]}  Bb5 {[%clk 0:01:54]} 28. Nc5 {[%clk 0:01:29]}  Nd3+ {[%clk 0:01:44]} 29. Nxd3 {[%clk 0:01:29]}  Bxd3 {[%clk 0:01:35]} 30. d7 {[%clk 0:01:29]} 1-0


[Site "https://www.chess.com"]

[Event "Titled Tuesday Blitz June 27 Early 2023"]
[White "Kovalevsky, Stanislav"]
[Black "Tarnowska, Aleksandra"]
[WhiteFideId "13508598"]
[BlackFideId "1180967"]
[WhiteElo "2468"]
[BlackElo "2156"]
[Result "1-0"]
[Round "2"]
[TimeControl "180+2"]
[Date "2023.06.27"]
[WhiteClock "0:00:46"]
[BlackClock "0:00:00"]
[Board "221"]

1. c4 {[%clk 0:03:00]}  e5 {[%clk 0:02:42]} 2. Nc3 {[%clk 0:02:59]}  Nf6 {[%clk 0:02:39]} 3. g3 {[%clk 0:03:00]}  Bb4 {[%clk 0:02:35]} 4. Bg2 {[%clk 0:02:59]}  Nc6 {[%clk 0:02:33]} 5. e4 {[%clk 0:02:59]}  d6 {[%clk 0:02:33]} 6. Nd5 {[%clk 0:02:57]}  Nxd5 {[%clk 0:02:31]} 7. exd5 {[%clk 0:02:58]}  Nd4 {[%clk 0:02:25]} 8. Ne2 {[%clk 0:02:58]}  Bc5 {[%clk 0:02:12]} 9. Nxd4 {[%clk 0:02:34]}  Bxd4 {[%clk 0:02:10]} 10. O-O {[%clk 0:02:35]}  Bf5 {[%clk 0:01:49]} 11. h3 {[%clk 0:02:32]}  Qf6 {[%clk 0:01:39]} 12. Kh2 {[%clk 0:02:26]}  Bd3 {[%clk 0:01:32]} 13. f4 {[%clk 0:02:01]}  Bxf1 {[%clk 0:01:25]} 14. Qxf1 {[%clk 0:02:01]}  O-O {[%clk 0:01:10]} 15. d3 {[%clk 0:02:00]}  exf4 {[%clk 0:01:06]} 16. Bxf4 {[%clk 0:01:59]}  Bxb2 {[%clk 0:00:59]} 17. Rb1 {[%clk 0:01:59]}  b6 {[%clk 0:00:57]} 18. Qf2 {[%clk 0:01:50]}  Be5 {[%clk 0:00:37]} 19. Be4 {[%clk 0:01:46]}  Bxf4 {[%clk 0:00:36]} 20. gxf4 {[%clk 0:01:47]}  Rfe8 {[%clk 0:00:28]} 21. Rg1 {[%clk 0:01:43]}  Qh6 {[%clk 0:00:21]} 22. Rg4 {[%clk 0:01:40]}  g6 {[%clk 0:00:20]} 23. f5 {[%clk 0:01:35]}  Re5 {[%clk 0:00:10]} 24. Rh4 {[%clk 0:01:17]}  Qg5 {[%clk 0:00:07]} 25. fxg6 {[%clk 0:01:11]}  fxg6 {[%clk 0:00:06]} 26. Rg4 {[%clk 0:00:57]}  Qh6 {[%clk 0:00:03]} 27. Bxg6 {[%clk 0:00:48]}  hxg6 {[%clk 0:00:03]} 28. Qf6 {[%clk 0:00:47]}  g5 {[%clk 0:00:02]} 29. Qxh6 {[%clk 0:00:47]}  Re2+ {[%clk 0:00:02]} 30. Kg3 {[%clk 0:00:46]}  Rae8 {[%clk 0:00:01]} 31. Rxg5+ {[%clk 0:00:46]}  Kf7 {[%clk 0:00:00]} 32. Rg7+ {[%clk 0:00:46]} 1-0


[Site "https://www.chess.com"]